fUST/lending_fUST_20260114
["ID","MTS","AMOUNT","RATE_DAILY","PERIOD"]
[401878821,1768392686288,-870.06,0.00030136,120]
[401878822,1768392686297,-1749.5,0.00030136,120]
[401878823,1768392686306,-490.347103,0.00030136,7]
[401878824,1768392686317,-1738.62,0.00030136,120]
[401878825,1768392686326,-870.06,0.00030136,120]
[401878826,1768392686336,-500.0,0.00030136,120]
[401878827,1768392686345,-1064.44613887,0.00030136,120]
[401878828,1768392688131,-634.30770683,0.00030136,120]
[401878829,1768392688142,-50.7461543,0.00030136,120]
[401878830,1768392688153,-412.74437433,0.00030136,120]
[401878831,1768392688164,-1738.62,0.00030136,120]
[401878832,1768392688176,-870.06,0.00030136,120]
[401878833,1768392688186,-387.22517147,0.00030136,120]
[401878835,1768393042805,-300.0,9.468e-05,2]
[401878836,1768393042833,-1200.0,9.469e-05,2]
[401878837,1768393042860,-605.65617213,9.469e-05,2]
[401878838,1768393042890,-500.0,9.469e-05,2]
[401878839,1768393042919,-500.0,9.469e-05,2]
[401878840,1768393042948,-500.0,9.469e-05,2]
[401878841,1768393042977,-500.0,9.469e-05,2]
[401878842,1768393043224,-500.0,9.469e-05,2]
[401878843,1768393043254,-288.69765574,9.469e-05,2]
[401878844,1768393043444,-211.30234426,9.469e-05,2]
[401878845,1768393043518,-500.0,9.469e-05,2]
[401878846,1768393043546,-500.0,9.469e-05,2]
[401878847,1768393043575,-500.0,9.469e-05,2]
[401878848,1768393043602,-500.0,9.469e-05,2]
[401878849,1768393043631,-500.0,9.469e-05,2]
[401878850,1768393043659,-500.0,9.469e-05,2]
[401878851,1768393043687,-500.0,9.469e-05,2]
[401878852,1768393043716,-500.0,9.469e-05,2]
[401878853,1768393043745,-414.32858278,9.469e-05,2]
[401878854,1768393043773,-500.0,9.469e-05,2]
[401878855,1768393044041,-171.35283444,9.469e-05,2]
[401878856,1768393044097,-328.64716556,9.469e-05,2]
[401878857,1768393044132,-500.0,9.469e-05,2]
[401878858,1768393044167,-500.0,9.469e-05,2]
[401878859,1768393044210,-500.0,9.469e-05,2]
[401878860,1768393044260,-500.0,9.469e-05,2]
[401878861,1768393044305,-500.0,9.469e-05,2]
[401878862,1768393044338,-500.0,9.469e-05,2]
[401878863,1768393044367,-500.0,9.469e-05,2]
[401878864,1768393044397,-500.0,9.469e-05,2]
[401878865,1768393044427,-500.0,9.469e-05,2]
[401878866,1768393044617,-342.71566888,9.469e-05,2]
[401878867,1768393045147,-157.28433112,9.469e-05,2]
[401878868,1768393045176,-500.0,9.469e-05,2]
[401878869,1768393045205,-500.0,9.469e-05,2]
[401878870,1768393045235,-595.16143996,9.469e-05,2]
[401878871,1768393045270,-500.0,9.469e-05,2]
[401878872,1768393045300,-500.0,9.469e-05,2]
[401878873,1768393045331,-500.0,9.469e-05,2]
[401878874,1768393045360,-500.0,9.469e-05,2]
[401878875,1768393045390,-500.0,9.469e-05,2]
[401878876,1768393045418,-500.0,9.469e-05,2]
[401878877,1768393045803,-495.11845784,9.469e-05,2]
[401878878,1768393045877,-4.88154216,9.469e-05,2]
[401878879,1768393045907,-500.0,9.469e-05,2]
[401878880,1768393045934,-500.0,9.469e-05,2]
[401878881,1768393045965,-500.0,9.469e-05,2]
[401878882,1768393045994,-500.0,9.469e-05,2]
[401878883,1768393046040,-500.0,9.469e-05,2]
[401878884,1768393046072,-500.0,9.469e-05,2]
[401878885,1768393046106,-519.85081197,9.469e-05,2]
[401878886,1768393046136,-500.0,9.469e-05,2]
[401878887,1768393046177,-500.0,9.469e-05,2]
[401878888,1768393046209,-450.54529174,9.469e-05,2]
[401878889,1768393046392,-49.45470826,9.469e-05,2]
[401878890,1768393046423,-500.0,9.469e-05,2]
[401878891,1768393046454,-500.0,9.469e-05,2]
[401878892,1768393046484,-500.0,9.469e-05,2]
[401878893,1768393046514,-500.0,9.469e-05,2]
[401878894,1768393046546,-500.0,9.469e-05,2]
[401878895,1768393046576,-500.0,9.469e-05,2]
[401878896,1768393046844,-500.0,9.469e-05,2]
[401878897,1768393046882,-500.0,9.469e-05,2]
[401878898,1768393046913,-500.0,9.469e-05,2]
[401878899,1768393046944,-401.10058348,9.469e-05,2]
[401878900,1768393047316,-98.89941652,9.469e-05,2]
[401878901,1768393047325,-49.45470826,9.469e-05,2]
[401878902,1768393050621,1456.0,0.00025,120]
[401878903,1768393052633,-450.54529174,9.469e-05,2]
[401878904,1768393052665,-300.0,9.469e-05,2]
[401878905,1768393052696,-500.0,9.469e-05,2]
[401878906,1768393052725,-238.31331116,9.469e-05,2]
[401878907,1768393052755,-231.57987508,9.469e-05,2]
[401878908,1768393052785,-240.60650791,9.469e-05,2]
[401878909,1768393052814,-185.07667678,9.469e-05,2]
[401878910,1768393052943,-5707.76667466,9.47e-05,2]
[401878911,1768393053199,-10000.01,9.47e-05,2]
[401878912,1768393053547,-10000.01,9.47e-05,2]
[401878913,1768393063709,-219.04,7.333e-05,2]
[401878914,1768393063738,-292.05,7.652e-05,2]
[401878915,1768393063768,-365.06,7.971e-05,2]
[401878916,1768393063796,-438.07,8.29e-05,2]
[401878917,1768393063825,-511.09,8.609e-05,2]
[401878918,1768393063957,584.1,8.928e-05,2]
[401878919,1768393064340,657.11,9.247e-05,2]
[401878920,1768393109122,300.0,8.61e-05,2]
[401878921,1768393135069,169.37,5.96e-05,2]
[401878922,1768393135483,338.75,6.244e-05,2]
[401878923,1768393136187,508.12,6.528e-05,2]
[401878924,1768393136601,677.5,6.811e-05,2]
[401878925,1768393137000,846.87,7.095e-05,2]
[401878926,1768393137549,1016.24,7.379e-05,2]
[401878927,1768393137948,1185.62,7.663e-05,2]
[401878928,1768393138345,65.71,7.947e-05,2]
[401878929,1768393138368,1289.28,7.947e-05,2]
[401878930,1768393138793,1524.36,8.23e-05,2]
[401878931,1768393139466,1693.74,8.514e-05,2]
[401878932,1768393166332,3712.9968753,8.504e-05,2]
[401878934,1768393203090,150.46,3e-05,2]
[401878935,1768393203166,150.46,3.1e-05,2]
[401878936,1768393203466,150.46,3.1e-05,2]
[401878937,1768393203775,150.46,3.2e-05,2]
[401878938,1768393204093,150.46,3.3e-05,2]
[401878939,1768393204407,150.46,3.3e-05,2]
[401878940,1768393204733,150.46,3.4e-05,2]
[401878941,1768393205121,150.46,3.5e-05,2]
[401878942,1768393205528,150.46,3.5e-05,2]
[401878943,1768393205869,150.46,3.6e-05,2]
[401878944,1768393206195,150.46,3.6e-05,2]
[401878945,1768393206581,124.5731247,3.7e-05,2]
[401878946,1768393206604,25.8868753,3.7e-05,2]
[401878947,1768393207588,150.46,3.8e-05,2]
[401878948,1768393207697,150.46,3.8e-05,2]
[401878949,1768393208008,150.46,3.9e-05,2]
[401878950,1768393208346,150.46,4e-05,2]
[401878951,1768393208649,150.46,4e-05,2]
[401878952,1768393208990,150.46,4.1e-05,2]
[401878953,1768393209335,150.46,4.2e-05,2]
[401878954,1768393209652,150.46,4.2e-05,2]
[401878955,1768393210046,150.46,4.3e-05,2]
[401878956,1768393210371,150.46,4.4e-05,2]
[401878957,1768393210425,152.81,6.013e-05,2]
[401878958,1768393210799,150.46,4.4e-05,2]
[401878959,1768393211104,305.63,6.3e-05,2]
[401878960,1768393211179,150.46,4.5e-05,2]
[401878961,1768393211245,458.44,6.586e-05,2]
[401878962,1768393211593,150.46,4.5e-05,2]
[401878963,1768393211637,611.25,6.872e-05,2]
[401878964,1768393211899,150.46,4.6e-05,2]
[401878965,1768393212310,150.46,4.7e-05,2]
[401878966,1768393212348,764.07,7.159e-05,2]
[401878967,1768393212615,150.46,4.7e-05,2]
[401878968,1768393212758,916.88,7.445e-05,2]
[401878969,1768393212988,150.46,4.8e-05,2]
[401878970,1768393213158,1069.69,7.731e-05,2]
[401878971,1768393213336,150.46,4.9e-05,2]
[401878972,1768393213570,1222.51,8.018e-05,2]
[401878973,1768393213634,150.46,4.9e-05,2]
[401878974,1768393213939,150.46,5e-05,2]
[401878975,1768393213981,1375.32,8.304e-05,2]
[401878976,1768393214376,88.3231247,8.59e-05,2]
[401878977,1768393214400,1439.8068753,8.59e-05,2]
[401878978,1768393245277,5811.3867424,8.572e-05,2]
[401878979,1768393277138,300.613652,8.47e-05,2]
[401878980,1768393289064,205.98,7.49e-05,2]
[401878981,1768393289461,308.97,7.83e-05,2]
[401878982,1768393289854,411.96,8.171e-05,2]
[401878983,1768393290558,514.95,8.511e-05,2]
[401878984,1768393290721,617.94,8.851e-05,2]
[401878985,1768393291180,388.4027303,9.192e-05,2]
[401878986,1768393291204,332.5272697,9.192e-05,2]
[401878987,1768393324063,155.0,5e-05,2]
[401878988,1768393361821,-197.36,9.369e-05,2]
[401878989,1768393365378,202.8,6.566e-05,2]
[401878990,1768393365991,270.39,6.851e-05,2]
[401878991,1768393366214,337.99,7.137e-05,2]
[401878992,1768393366633,405.59,7.422e-05,2]
[401878993,1768393367045,473.19,7.707e-05,2]
[401878994,1768393367448,540.79,7.993e-05,2]
[401878995,1768393367882,608.39,8.278e-05,2]
[401878996,1768393368282,675.99,8.564e-05,2]
[401878997,1768393438297,160.02,7.713e-05,2]
[401878998,1768393438833,182.88,7.998e-05,2]
[401878999,1768393439109,205.74,8.284e-05,2]
[401879000,1768393439549,228.6,8.57e-05,2]
[401879005,1768393718374,5901.22588702,7.3e-05,2]
[401879006,1768393723793,4098.78411298,8.432e-05,2]
[401879007,1768393723817,5901.22588702,8.432e-05,2]
[401879009,1768393742444,300.0,9.368e-05,2]
[401879012,1768393802253,300.0,9.368e-05,2]
[401879013,1768393802307,300.0,9.368e-05,2]
[401879014,1768393803535,1200.0,9.368e-05,2]
[401879015,1768393805223,551.0,9.369e-05,2]
[401879060,1768393838605,-207.63554956,9.369e-05,2]
[401879061,1768393838615,-150.03423469,9.369e-05,2]
[401879063,1768393838744,-298.97943554,9.369e-05,2]
[401879064,1768393838755,-500.0,9.369e-05,2]
[401879065,1768393838766,-500.0,9.369e-05,2]
[401879066,1768393838776,-566.12904888,9.369e-05,2]
[401879067,1768393838789,-500.0,9.369e-05,2]
[401879068,1768393838799,-500.0,9.369e-05,2]
[401879069,1768393838810,-531.9850812,9.369e-05,2]
[401879070,1768393838820,-1051.09974574,9.37e-05,2]
[401879071,1768393838840,-998948.90025426,9.37e-05,2]
[401879072,1768393838850,-417.80091133,9.38e-05,2]
[401879073,1768393838859,-573.348612,9.412e-05,2]
[401879074,1768393838869,-50000.0,9.469e-05,2]
[401879075,1768393838879,-277.872,9.47e-05,2]
[401879076,1768393838890,-178.226,9.47e-05,2]
[401879077,1768393838899,-38071.3369758,9.471e-05,2]
[401879078,1768393838909,-10015.29497958,9.6e-05,2]
[401879079,1768393838920,-300.0,9.797e-05,2]
[401879080,1768393838930,-300.0,9.797e-05,2]
[401879081,1768393838939,-300.0,9.797e-05,2]
[401879082,1768393838950,-300.0,9.797e-05,2]
[401879083,1768393838960,-300.0,9.797e-05,2]
[401879084,1768393838970,-300.0,9.797e-05,2]
[401879085,1768393838982,-300.0,9.797e-05,2]
[401879086,1768393838993,-300.0,9.797e-05,2]
[401879087,1768393839002,-300.0,9.797e-05,2]
[401879088,1768393839013,-300.0,9.797e-05,2]
[401879089,1768393839023,-300.0,9.797e-05,2]
[401879090,1768393839034,-300.0,9.797e-05,2]
[401879091,1768393839044,-300.0,9.797e-05,2]
[401879092,1768393839054,-300.0,9.797e-05,2]
[401879093,1768393839064,-300.0,9.797e-05,2]
[401879094,1768393839073,-600.0,9.797e-05,2]
[401879095,1768393839083,-1000.0,9.8e-05,2]
[401879096,1768393839094,-420.0,0.00010305,2]
[401879097,1768393839104,-1171.0,0.00010305,2]
[401879098,1768393839113,-720.0,0.00010777,2]
[401879099,1768393839123,-999.0,0.00010959,2]
[401879100,1768393839133,-1504.104065,0.00010959,2]
[401879101,1768393839142,-1500.0,0.00010959,2]
[401879102,1768393839152,-1000.0,0.00011,2]
[401879103,1768393839163,-493.00507537,0.0001138,2]
[401879104,1768393839173,-1021.9964335,0.00011509,2]
[401879105,1768393839183,-908.34331206,0.0001152,2]
[401879106,1768393839193,-156.90738503,0.00011718,2]
[401879107,1768393839203,-186.89137862,0.00011799,2]
[401879108,1768393839212,-864.0,0.00011855,2]
[401879109,1768393839222,-1267.13358599,0.00011878,2]
[401879110,1768393839233,-1000.0,0.00012,2]
[401879111,1768393839242,-895.68236916,0.00012329,2]
[401879112,1768393839252,-895.68236916,0.00012329,2]
[401879113,1768393839261,-895.68236916,0.00012329,2]
[401879114,1768393839271,-895.68236916,0.00012329,2]
[401879115,1768393839281,-895.68236916,0.00012329,2]
[401879116,1768393839291,-895.68236916,0.00012329,2]
[401879117,1768393839300,-895.68236916,0.00012329,2]
[401879118,1768393839310,-895.68236916,0.00012329,2]
[401879119,1768393839319,-895.68236916,0.00012329,2]
[401879120,1768393839328,-895.68236916,0.00012329,2]
[401879121,1768393839338,-895.68236916,0.00012329,2]
[401879122,1768393839346,-895.68236916,0.00012329,2]
[401879123,1768393839356,-895.68236916,0.00012329,2]
[401879124,1768393839365,-895.68236916,0.00012329,2]
[401879125,1768393839374,-895.68236916,0.00012329,2]
[401879126,1768393839383,-895.68236916,0.00012329,2]
[401879127,1768393839392,-895.68236916,0.00012329,2]
[401879128,1768393839402,-895.68236916,0.00012329,2]
[401879129,1768393839412,-895.68236916,0.00012329,2]
[401879130,1768393839422,-895.68236916,0.00012329,2]
[401879131,1768393839431,-895.68236916,0.00012329,2]
[401879132,1768393839442,-895.68236916,0.00012329,2]
[401879133,1768393839451,-895.68236916,0.00012329,2]
[401879134,1768393839461,-895.68236916,0.00012329,2]
[401879135,1768393839470,-895.68236916,0.00012329,2]
[401879136,1768393839482,-895.68236916,0.00012329,2]
[401879137,1768393839491,-895.68236916,0.00012329,2]
[401879138,1768393839502,-895.68236916,0.00012329,2]
[401879139,1768393839511,-895.68236916,0.00012329,2]
[401879140,1768393839521,-895.68236916,0.00012329,2]
[401879141,1768393839531,-895.68236916,0.00012329,2]
[401879142,1768393839540,-895.68236916,0.00012329,2]
[401879143,1768393839551,-895.68236916,0.00012329,2]
[401879144,1768393839561,-895.68236916,0.00012329,2]
[401879145,1768393839570,-895.68236916,0.00012329,2]
[401879146,1768393839580,-895.68236916,0.00012329,2]
[401879147,1768393839589,-895.68236916,0.00012329,2]
[401879148,1768393839599,-895.68236916,0.00012329,2]
[401879149,1768393839608,-895.68236916,0.00012329,2]
[401879150,1768393839617,-895.68236916,0.00012329,2]
[401879151,1768393839627,-895.68236916,0.00012329,2]
[401879152,1768393839636,-895.68236916,0.00012329,2]
[401879153,1768393839646,-895.68236916,0.00012329,2]
[401879154,1768393839656,-895.68236916,0.00012329,2]
[401879155,1768393839665,-895.68236916,0.00012329,2]
[401879156,1768393839674,-895.68236916,0.00012329,2]
[401879157,1768393839684,-895.68236916,0.00012329,2]
[401879158,1768393839693,-895.68236916,0.00012329,2]
[401879159,1768393839703,-895.68236916,0.00012329,2]
[401879160,1768393839712,-895.68236916,0.00012329,2]
[401879161,1768393839721,-895.68236916,0.00012329,2]
[401879162,1768393839730,-895.68236916,0.00012329,2]
[401879163,1768393839740,-895.68236916,0.00012329,2]
[401879164,1768393839749,-895.68236916,0.00012329,2]
[401879165,1768393839758,-895.68236916,0.00012329,2]
[401879166,1768393839767,-895.68236916,0.00012329,2]
[401879167,1768393839776,-895.68236916,0.00012329,2]
[401879168,1768393839787,-895.68236916,0.00012329,2]
[401879169,1768393839796,-895.68236916,0.00012329,2]
[401879170,1768393839806,-895.68236916,0.00012329,2]
[401879171,1768393839815,-1578.35782662,0.00012329,2]
[401879172,1768393839825,-1578.35782662,0.00012329,2]
[401879173,1768393839835,-1578.35782662,0.00012329,2]
[401879174,1768393839844,-1578.35782662,0.00012329,2]
[401879175,1768393839854,-1578.35782662,0.00012329,2]
[401879176,1768393839864,-1578.35782662,0.00012329,2]
[401879177,1768393839873,-1578.35782662,0.00012329,2]
[401879178,1768393839883,-1578.35782662,0.00012329,2]
[401879179,1768393839892,-1578.35782662,0.00012329,2]
[401879180,1768393839901,-1578.35782662,0.00012329,2]
[401879181,1768393839911,-1578.35782662,0.00012329,2]
[401879182,1768393839920,-1578.35782662,0.00012329,2]
[401879183,1768393839929,-1578.35782662,0.00012329,2]
[401879184,1768393839939,-1578.35782662,0.00012329,2]
[401879185,1768393839948,-1578.35782662,0.00012329,2]
[401879186,1768393839958,-1578.35782662,0.00012329,2]
[401879187,1768393839967,-1578.35782662,0.00012329,2]
[401879188,1768393839976,-1578.35782662,0.00012329,2]
[401879189,1768393839986,-1578.35782662,0.00012329,2]
[401879190,1768393839995,-1578.35782662,0.00012329,2]
[401879191,1768393840005,-1578.35782662,0.00012329,2]
[401879192,1768393840014,-1578.35782662,0.00012329,2]
[401879193,1768393840023,-1578.35782662,0.00012329,2]
[401879194,1768393840033,-1578.35782662,0.00012329,2]
[401879195,1768393840043,-1578.35782662,0.00012329,2]
[401879196,1768393840052,-1578.35782662,0.00012329,2]
[401879197,1768393840063,-1578.35782662,0.00012329,2]
[401879198,1768393840073,-1578.35782662,0.00012329,2]
[401879199,1768393840083,-1578.35782662,0.00012329,2]
[401879200,1768393840094,-1578.35782662,0.00012329,2]
[401879201,1768393840103,-250.0,0.0001238,2]
[401879202,1768393840112,-3522.5668425,0.000125,2]
[401879203,1768393840123,-1000.0,0.00012999,2]
[401879204,1768393840133,-246.05048425,0.00013,3]
[401879205,1768393840143,-1000.0,0.0001304,2]
[401879206,1768393840152,-500.0,0.00013273,2]
[401879207,1768393840162,-500.21355158,0.00013273,2]
[401879208,1768393840172,-533.74804854,0.00013273,2]
[401879210,1768393840181,-500.0,0.00013273,2]
[401879212,1768393840190,-500.0,0.00013273,2]
[401879214,1768393840200,-500.0,0.00013273,2]
[401879216,1768393840209,-501.85584568,0.00013273,2]
[401879218,1768393840219,-500.0,0.00013273,2]
[401879219,1768393840229,-500.0,0.00013273,2]
[401879220,1768393840240,-500.0,0.00013273,2]
[401879221,1768393840249,-500.0,0.00013273,2]
[401879222,1768393840259,-500.0,0.00013273,2]
[401879223,1768393840269,-500.0,0.00013273,2]
[401879224,1768393840278,-500.0,0.00013273,2]
[401879225,1768393840288,-195.77760179,0.00013273,2]
[401879227,1768393840297,-500.0,0.00013273,2]
[401879229,1768393840306,-500.0,0.00013273,2]
[401879231,1768393840315,-568.20923941,0.0001338,2]
[401879233,1768393840325,-500.0,0.00013698,2]
[401879234,1768393840334,-500.0,0.00013698,2]
[401879235,1768393840343,-500.0,0.00013698,2]
[401879236,1768393840353,-500.0,0.00013698,2]
[401879237,1768393840362,-500.0,0.00013698,2]
[401879238,1768393840372,-500.0,0.00013698,2]
[401879239,1768393840382,-500.0,0.00013698,2]
[401879240,1768393840392,-500.0,0.00013698,2]
[401879241,1768393840402,-500.0,0.00013698,2]
[401879242,1768393840412,-500.0,0.00013698,2]
[401879243,1768393840421,-500.0,0.00013698,2]
[401879244,1768393840430,-500.0,0.00013698,2]
[401879246,1768393840439,-500.0,0.00013698,2]
[401879247,1768393840448,-500.0,0.00013698,2]
[401879248,1768393840457,-500.0,0.00013698,2]
[401879249,1768393840469,-500.0,0.00013698,2]
[401879250,1768393840480,-500.0,0.00013698,2]
[401879251,1768393840490,-500.0,0.00013698,2]
[401879252,1768393840500,-500.0,0.00013698,2]
[401879253,1768393840511,-492.96678427,0.00013698,2]
[401879254,1768393840522,-518.87817295,0.00013698,2]
[401879255,1768393840531,-500.0,0.00013698,2]
[401879256,1768393840541,-500.0,0.00013698,2]
[401879257,1768393840550,-500.0,0.00013698,2]
[401879258,1768393840560,-500.0,0.00013698,2]
[401879259,1768393840569,-500.0,0.00013698,2]
[401879260,1768393840578,-500.0,0.00013698,2]
[401879277,1768393840856,-582.4382982,0.00013698,2]
[401879279,1768393840867,-500.0,0.00013698,2]
[401879281,1768393840876,-500.0,0.00013698,2]
[401879283,1768393840886,-622.37610142,0.00013698,2]
[401879285,1768393840896,-500.0,0.00013698,2]
[401879287,1768393840905,-500.0,0.00013698,2]
[401879289,1768393840915,-253.34510422,0.00013698,2]
[401879291,1768393840924,-500.0,0.00013698,2]
[401879293,1768393840933,-500.0,0.00013698,2]
[401879294,1768393840942,-500.0,0.00013698,2]
[401879295,1768393840951,-453.8287473,0.00013698,2]
[401879296,1768393840960,-1593.3,0.00013698,2]
[401879297,1768393840970,-1593.3,0.00013698,2]
[401879298,1768393840979,-1593.3,0.00013698,2]
[401879299,1768393840988,-1593.3,0.00013698,2]
[401879300,1768393840998,-1593.3,0.00013698,2]
[401879301,1768393841007,-1593.3,0.00013698,2]
[401879302,1768393841016,-1593.3,0.00013698,2]
[401879303,1768393841027,-1593.3,0.00013698,2]
[401879304,1768393841036,-1593.3,0.00013698,2]
[401879305,1768393841053,-1593.3,0.00013698,2]
[401879306,1768393841063,-1593.3,0.00013698,2]
[401879307,1768393841074,-1593.3,0.00013698,2]
[401879309,1768393841083,-1593.3,0.00013698,2]
[401879310,1768393841093,-1593.3,0.00013698,2]
[401879311,1768393841102,-1593.3,0.00013698,2]
[401879312,1768393841112,-1593.3,0.00013698,2]
[401879313,1768393841123,-1593.3,0.00013698,2]
[401879314,1768393841132,-1593.3,0.00013698,2]
[401879315,1768393841142,-1593.3,0.00013698,2]
[401879316,1768393841152,-1593.3,0.00013698,2]
[401879317,1768393841162,-1593.3,0.00013698,2]
[401879318,1768393841171,-1593.3,0.00013698,2]
[401879319,1768393841181,-1593.3,0.00013698,2]
[401879320,1768393841191,-1593.3055421,0.00013698,2]
[401879321,1768393841201,-500.0,0.00013698,2]
[401879322,1768393841211,-500.0,0.00013698,2]
[401879323,1768393841220,-500.0,0.00013698,2]
[401879324,1768393841230,-500.0,0.00013698,2]
[401879325,1768393841240,-500.0,0.00013698,2]
[401879326,1768393841250,-500.0,0.00013698,2]
[401879327,1768393841259,-500.0,0.00013698,2]
[401879328,1768393841269,-500.0,0.00013698,2]
[401879329,1768393841279,-500.0,0.00013698,2]
[401879330,1768393841289,-500.0,0.00013698,2]
[401879331,1768393841299,-260.74557216,0.00013698,2]
[401879332,1768393841309,-570.08,0.00013698,2]
[401879333,1768393841318,-570.08,0.00013698,2]
[401879334,1768393841328,-570.08,0.00013698,2]
[401879335,1768393841337,-570.08,0.00013698,2]
[401879336,1768393841347,-570.08,0.00013698,2]
[401879337,1768393841356,-570.08,0.00013698,2]
[401879338,1768393841366,-570.08,0.00013698,2]
[401879339,1768393841376,-570.08,0.00013698,2]
[401879340,1768393841386,-570.08,0.00013698,2]
[401879341,1768393841395,-570.08,0.00013698,2]
[401879342,1768393841405,-570.08,0.00013698,2]
[401879343,1768393841414,-570.08,0.00013698,2]
[401879344,1768393841425,-570.08,0.00013698,2]
[401879345,1768393841435,-570.08,0.00013698,2]
[401879346,1768393841448,-570.08,0.00013698,2]
[401879347,1768393841458,-570.08,0.00013698,2]
[401879348,1768393841472,-570.08,0.00013698,2]
[401879349,1768393841481,-570.08,0.00013698,2]
[401879350,1768393841491,-570.08,0.00013698,2]
[401879351,1768393841500,-570.08,0.00013698,2]
[401879352,1768393841511,-570.08,0.00013698,2]
[401879353,1768393841520,-570.08,0.00013698,2]
[401879354,1768393841530,-570.08,0.00013698,2]
[401879355,1768393841543,-570.14825894,0.00013698,2]
[401879356,1768393841556,-500.0,0.00013698,2]
[401879357,1768393841566,-500.0,0.00013698,2]
[401879358,1768393841575,-500.0,0.00013698,2]
[401879359,1768393841585,-500.0,0.00013698,2]
[401879360,1768393841594,-550.39437847,0.00013698,2]
[401879361,1768393841603,-504.29229129,0.00013698,2]
[401879362,1768393841612,-500.0,0.00013698,2]
[401879363,1768393841622,-137184.8864488,0.00013699,2]
[401879364,1768393841632,-1321.2655534,0.00013699,2]
[401879365,1768393841642,-500.0,0.00013699,2]
[401879366,1768393841651,-500.0,0.00013699,2]
[401879367,1768393841663,-500.0,0.00013699,2]
[401879368,1768393841672,-500.0,0.00013699,2]
[401879369,1768393841683,-500.0,0.00013699,2]
[401879370,1768393841692,-500.0,0.00013699,2]
[401879371,1768393841703,-500.0,0.00013699,2]
[401879372,1768393841713,-526.2087109,0.00013699,2]
[401879373,1768393841723,-500.0,0.00013699,2]
[401879374,1768393841732,-500.0,0.00013699,2]
[401879375,1768393841742,-2000.0,0.00013699,7]
[401879376,1768393841751,-500.0,0.00013699,2]
[401879377,1768393841761,-500.0,0.00013699,2]
[401879378,1768393841771,-433.32498894,0.00013699,2]
[401879379,1768393841780,-10000.0,0.00013735,2]
[401879380,1768393841790,-10000.0,0.00013735,2]
[401879381,1768393841800,-4343.48,0.00013735,2]
[401879382,1768393841810,-1002.88869488,0.00013821,2]
[401879383,1768393841819,-1000.0,0.00013821,2]
[401879384,1768393841829,-574.08865466,0.00013821,2]
[401879385,1768393841838,-1000.0,0.00013821,2]
[401879386,1768393841848,-1000.0,0.00013821,2]
[401879387,1768393841859,-1000.0,0.00013821,2]
[401879388,1768393841870,-386.78841051,0.00013821,2]
[401879389,1768393841883,-503.63165228,0.00013821,2]
[401879390,1768393841892,-1000.0,0.00013821,2]
[401879391,1768393841905,-1000.0,0.00013821,2]
[401879392,1768393841914,-284.00644743,0.00013821,2]
[401879393,1768393841924,-1000.0,0.00013821,2]
[401879394,1768393841935,-1000.0,0.00013821,2]
[401879395,1768393841944,-2000.89259962,0.00014,2]
[401879396,1768393841954,-501.43010395,0.00014247,2]
[401879397,1768393841964,-1000.0,0.00014247,2]
[401879398,1768393841973,-500.73561513,0.00014247,2]
[401879399,1768393841982,-323.8476233,0.00014247,2]
[401879400,1768393841992,-1000.0,0.00014247,2]
[401879401,1768393842002,-1000.0,0.00014247,2]
[401879402,1768393842011,-1000.0,0.00014247,2]
[401879403,1768393842021,-685.95842189,0.00014247,2]
[401879404,1768393842031,-1000.0,0.00014247,2]
[401879405,1768393842043,-504.58578591,0.00014247,2]
[401879406,1768393842054,-1000.0,0.00014247,2]
[401879407,1768393842063,-1000.0,0.00014344,2]
[401879408,1768393842073,-244.0,0.00014344,2]
[401879409,1768393842082,-502.68632401,0.00014368,2]